[Event "DEN-ch 2019"]
[Site "Svendborg"]
[Date "2019.04.16"]
[Round "4.1"]
[White "Antonsen, Mikkel"]
[Black "Chatalbashev, Boris"]
[Result "1/2-1/2"]
[ECO "D07"]
[WhiteElo "2426"]
[BlackElo "2521"]
[Annotator "ChessBase"]
[PlyCount "108"]
[EventDate "2019.04.13"]
[EventType "tourn"]
[EventCountry "DEN"]
[SourceTitle "playchess.com"]
[Source "ChessBase"]
[SourceQuality "1"]
[TimeControl "40/5400+30:1800+30"]

1. d4 {[%emt 0:00:00]} d5 {[%emt 0:00:19]} 2. c4 {[%emt 0:00:00]} Nc6 {[%emt 0:00:04]} 3. Nc3 {[%emt 0:00:52]} Nf6 {[%emt 0:00:07]} 4. Nf3 {[%emt 0:07:09]} dxc4 {[%emt 0:00:12]} 5. e3 {[%emt 0:13:33]} e5 {[%emt 0:00:33]} 6. Bxc4 {[%emt 0:02:20]} exd4 {[%emt 0:00:07]} 7. exd4 {[%emt 0:00:04]} Bd6 {[%emt 0:00:06]} 8. O-O {[%emt 0:00:08]} O-O {[%emt 0:00:07]} 9. h3 {[%emt 0:03:38]} h6 {[%emt 0:07:52]} 10. a3 {[%emt 0:01:25]} Bf5 {[%emt 0:01:10]} 11. Re1 {[%emt 0:01:28]} a6 {[%emt 0:08:41]} 12. Ne5 {[%emt 0:06:40]} Bxe5 {[%emt 0:01:22]} 13. dxe5 {[%emt 0:00:19]} Qxd1 {[%emt 0:00:13]} 14. Nxd1 {[%emt 0:00:04]} Nd7 {[%emt 0:00:39]} 15. f4 {[%emt 0:05:55]} Nb6 {[%emt 0:07:52]} 16. Ba2 {[%emt 0:04:35]} Nd4 {[%emt 0:01:17]} 17. Ne3 {[%emt 0:00:22]} Be6 {[%emt 0:00:27]} 18. b4 {[%emt 0:01:33]} Na4 {[%emt 0:15:59]} 19. Kh2 {[%emt 0:04:12]} Rad8 {[%emt 0:04:14]} 20. Rf1 {[%emt 0:01:01]} Nb3 {[%emt 0:12:11]} 21. f5 {[%emt 0:11:49]} Nxa1 {[%emt 0:00:29]} 22. fxe6 {[%emt 0:00:41]} fxe6 {[%emt 0:00:44]} 23. Bxe6+ {[%emt 0:00:07]} Kh8 {[%emt 0:10:38]} 24. Bf7 {[%emt 0:01:16]} Rd7 {[%emt 0:01:26]} 25. e6 {[%emt 0:07:25]} Re7 {[%emt 0:00:13]} 26. Rf3 {[%emt 0:09:47]} Nb3 {[%emt 0:14:21]} 27. Nd5 {[%emt 0:00:17]} Rxe6 {[%emt 0:00:07]} 28. Bxe6 {[%emt 0:00:13]} Rxf3 {[%emt 0:00:05]} 29. gxf3 {[%emt 0:00:04]} Nxc1 {[%emt 0:00:06]} 30. Bc8 {[%emt 0:05:03]} c6 {[%emt 0:03:05]} 31. Ne7 {[%emt 0:00:46]} a5 {[%emt 0:06:39]} 32. bxa5 {[%emt 0:01:15]} Nb3 {[%emt 0:00:02]} 33. Bxb7 {[%emt 0:01:21]} Nxa5 {[%emt 0:00:01]} 34. Bxc6 {[%emt 0:00:20]} Nc3 {[%emt 0:02:04]} 35. Be8 {[%emt 0:08:17]} g5 {[%emt 0:00:30]} 36. Nf5 {[%emt 0:00:29]} Kg8 {[%emt 0:01:10]} 37. Nxh6+ {[%emt 0:00:28]} Kf8 {[%emt 0:00:14]} 38. Bh5 {[%emt 0:01:48]} Nc4 {[%emt 0:00:25]} 39. Nf7 {[%emt 0:01:25]} Kg7 {[%emt 0:01:24]} 40. Nxg5 {[%emt 0:00:12]} Nxa3 {[%emt 0:01:16]} 41. h4 {[%emt 0:30:59]} Nc4 {[%emt 0:02:36]} 42. f4 {[%emt 0:00:00]} Ne3 {[%emt 0:03:44]} 43. Bf3 {[%emt 0:00:00]} Nb5 {[%emt 0:00:11]} 44. Be4 {[%emt 0:00:00]} Nd4 {[%emt 0:02:39]} 45. Kg3 {[%emt 0:00:00]} Kh6 {[%emt 0:00:32]} 46. Bb1 {[%emt 0:00:00]} Kh5 {[%emt 0:02:46]} 47. Kh3 {[%emt 0:00:00]} Nd5 {[%emt 0:03:42]} 48. f5 {[%emt 0:00:00]} Nf4+ {[%emt 0:01:02]} 49. Kg3 {[%emt 0:00:00]} Nfe2+ {[%emt 0:01:27]} 50. Kf2 {[%emt 0:00:00]} Kxh4 {[%emt 0:00:31]} 51. Ne6 {[%emt 0:00:00]} Nxf5 {[%emt 0:00:46]} 52. Bxf5 {[%emt 0:00:00]} Nf4 {[%emt 0:01:22]} 53. Nxf4 {[%emt 0:00:00]} Kg5 {[%emt 0:00:07]} 54. Bb1 {[%emt 0:00:00]} Kxf4 {[%emt 0:00:06]} 1/2-1/2

[Event "DEN-ch 2019"]
[Site "Svendborg"]
[Date "2019.04.16"]
[Round "4.2"]
[White "Thybo, Jesper Sondergaard"]
[Black "Hansen, Sune Berg"]
[Result "1-0"]
[ECO "D30"]
[WhiteElo "2513"]
[BlackElo "2590"]
[Annotator "ChessBase"]
[PlyCount "63"]
[EventDate "2019.04.13"]
[EventType "tourn"]
[EventCountry "DEN"]
[SourceTitle "playchess.com"]
[Source "ChessBase"]
[SourceQuality "1"]
[TimeControl "40/5400+30:1800+30"]

1. d4 {[%emt 0:00:00]} d5 {[%emt 0:00:00]} 2. c4 {[%emt 0:00:00]} e6 {[%emt 0:00:17]} 3. Nf3 {[%emt 0:00:00]} Nf6 {[%emt 0:00:24]} 4. g3 {[%emt 0:00:06]} Bb4+ {[%emt 0:00:14]} 5. Bd2 {[%emt 0:00:25]} Be7 {[%emt 0:00:43]} 6. Bg2 {[%emt 0:00:13]} O-O {[%emt 0:00:11]} 7. O-O {[%emt 0:00:18]} c6 {[%emt 0:01:54]} 8. Qb3 {[%emt 0:00:47]} Nbd7 {[%emt 0:04:17]} 9. Bf4 {[%emt 0:03:01]} Nh5 {[%emt 0:04:05]} 10. Bc1 {[%emt 0:00:58]} Nhf6 {[%emt 0:00:35]} 11. Bf4 {[%emt 0:01:12]} Nh5 {[%emt 0:01:36]} 12. Bc1 {[%emt 0:00:12]} Nhf6 {[%emt 0:00:06]} 13. Nc3 {[%emt 0:03:48]} b6 {[%emt 0:03:53]} 14. Bf4 {[%emt 0:03:51]} Bb7 {[%emt 0:27:07]} 15. cxd5 {[%emt 0:08:11]} cxd5 {[%emt 0:01:07]} 16. Rfc1 {[%emt 0:00:40]} Rc8 {[%emt 0:14:59]} 17. Nb5 {[%emt 0:08:59]} Rxc1+ {[%emt 0:06:36]} 18. Rxc1 {[%emt 0:00:09]} Qa8 {[%emt 0:04:28]} 19. Nc7 {[%emt 0:17:49]} Qd8 {[%emt 0:01:06]} 20. Ng5 {[%emt 0:00:30]} h6 {[%emt 0:04:08]} 21. Ngxe6 {[%emt 0:01:02]} fxe6 {[%emt 0:00:09]} 22. Nxe6 {[%emt 0:00:07]} Qa8 {[%emt 0:03:54]} 23. Nc7 {[%emt 0:05:47]} Qd8 {[%emt 0:00:06]} 24. e4 {[%emt 0:01:36]} Rf7 {[%emt 0:03:01]} 25. e5 {[%emt 0:01:45]} Nh7 {[%emt 0:02:34]} 26. Nxd5 {[%emt 0:05:59]} Ndf8 {[%emt 0:03:06]} 27. Nxe7+ {[%emt 0:03:56]} Qxe7 {[%emt 0:00:33]} 28. Bxb7 {[%emt 0:06:30]} Qxb7 {[%emt 0:01:08]} 29. e6 {[%emt 0:00:10]} Re7 {[%emt 0:01:29]} 30. Rc7 {[%emt 0:00:24]} Rxc7 {[%emt 0:00:15]} 31. e7+ {[%emt 0:00:06]} Kh8 {[%emt 0:00:11]} 32. Bxc7 {[%emt 0:00:11]} 1-0

[Event "DEN-ch 2019"]
[Site "Svendborg"]
[Date "2019.04.16"]
[Round "4.3"]
[White "Bjerre, Jonas Buhl"]
[Black "Teplyi, Igor"]
[Result "1-0"]
[ECO "B90"]
[WhiteElo "2470"]
[BlackElo "2418"]
[Annotator "ChessBase"]
[PlyCount "69"]
[EventDate "2019.04.13"]
[EventType "tourn"]
[EventCountry "DEN"]
[SourceTitle "playchess.com"]
[Source "ChessBase"]
[SourceQuality "1"]
[TimeControl "40/5400+30:1800+30"]

1. e4 {[%emt 0:00:00]} c5 {[%emt 0:00:00]} 2. Nf3 {[%emt 0:00:00]} d6 {[%emt 0:00:00]} 3. d4 {[%emt 0:00:00]} cxd4 {[%emt 0:00:00]} 4. Nxd4 {[%emt 0:00:00]} Nf6 {[%emt 0:00:00]} 5. Nc3 {[%emt 0:00:05]} a6 {[%emt 0:00:00]} 6. f3 {[%emt 0:01:40]} e5 {[%emt 0:00:09]} 7. Nb3 {[%emt 0:00:04]} Be6 {[%emt 0:00:08]} 8. Be3 {[%emt 0:00:34]} h5 {[%emt 0:00:09]} 9. Nd5 {[%emt 0:00:29]} Bxd5 {[%emt 0:00:54]} 10. exd5 {[%emt 0:01:36]} Nbd7 {[%emt 0:00:13]} 11. Qd2 {[%emt 0:00:52]} g6 {[%emt 0:00:28]} 12. Be2 {[%emt 0:02:20]} Bg7 {[%emt 0:00:11]} 13. O-O {[%emt 0:00:36]} b6 {[%emt 0:00:29]} 14. c4 {[%emt 0:00:54]} O-O {[%emt 0:00:15]} 15. Rac1 {[%emt 0:00:13]} Re8 {[%emt 0:01:18]} 16. h3 {[%emt 0:00:26]} Nh7 {[%emt 0:07:28]} 17. Bd1 {[%emt 0:03:22]} Rc8 {[%emt 0:08:27]} 18. Qe2 {[%emt 0:07:06]} a5 {[%emt 0:14:23]} 19. Nd2 {[%emt 0:06:50]} Nc5 {[%emt 0:02:48]} 20. b3 {[%emt 0:08:57]} Bf6 {[%emt 0:27:36]} 21. a3 {[%emt 0:04:54]} e4 {[%emt 0:09:13]} 22. Bc2 {[%emt 0:09:25]} Bb2 {[%emt 0:06:42]} 23. Rce1 {[%emt 0:10:05]} Nd3 {[%emt 0:03:19]} 24. Bxd3 {[%emt 0:05:59]} exd3 {[%emt 0:00:07]} 25. Qf2 {[%emt 0:04:34]} Bxa3 {[%emt 0:01:40]} 26. Bxb6 {[%emt 0:01:09]} Qd7 {[%emt 0:00:11]} 27. Re3 {[%emt 0:02:22]} Qf5 {[%emt 0:11:29]} 28. Ne4 {[%emt 0:03:08]} Ng5 {[%emt 0:02:56]} 29. Qa2 {[%emt 0:08:47]} Bb4 {[%emt 0:01:55]} 30. Qb2 {[%emt 0:02:18]} Nxe4 {[%emt 0:01:09]} 31. fxe4 {[%emt 0:00:20]} Qg5 {[%emt 0:00:05]} 32. Qf2 {[%emt 0:03:06]} Rf8 {[%emt 0:00:48]} 33. Rxd3 {[%emt 0:01:10]} Rce8 {[%emt 0:00:03]} 34. Rf3 {[%emt 0:02:53]} Rxe4 {[%emt 0:00:19]} 35. Rxf7 {[%emt 0:01:07]} 1-0

[Event "DEN-ch 2019"]
[Site "Svendborg"]
[Date "2019.04.16"]
[Round "4.4"]
[White "Rasmussen, Allan Stig"]
[Black "Ochsner, Bjorn Moller"]
[Result "1-0"]
[ECO "A30"]
[WhiteElo "2541"]
[BlackElo "2486"]
[Annotator "ChessBase"]
[PlyCount "66"]
[EventDate "2019.04.13"]
[EventType "tourn"]
[EventCountry "DEN"]
[SourceTitle "playchess.com"]
[Source "ChessBase"]
[SourceQuality "1"]
[TimeControl "40/5400+30:1800+30"]

1. c4 {[%emt 0:00:00]} c5 {[%emt 0:00:00]} 2. Nf3 {[%emt 0:00:00]} Nc6 {[%emt 0:00:23]} 3. Nc3 {[%emt 0:00:00]} g6 {[%emt 0:00:21]} 4. e3 {[%emt 0:00:14]} Nf6 {[%emt 0:00:06]} 5. d4 {[%emt 0:00:08]} cxd4 {[%emt 0:00:07]} 6. exd4 {[%emt 0:00:05]} d5 {[%emt 0:00:20]} 7. cxd5 {[%emt 0:00:17]} Nxd5 {[%emt 0:00:03]} 8. Qb3 {[%emt 0:00:20]} e6 {[%emt 0:00:16]} 9. Bb5 {[%emt 0:00:18]} Bg7 {[%emt 0:00:08]} 10. O-O {[%emt 0:00:21]} O-O {[%emt 0:00:08]} 11. Bxc6 {[%emt 0:00:07]} bxc6 {[%emt 0:00:04]} 12. Re1 {[%emt 0:00:16]} Qc7 {[%emt 0:00:39]} 13. h3 {[%emt 0:00:08]} Rb8 {[%emt 0:00:22]} 14. Qd1 {[%emt 0:00:10]} Ne7 {[%emt 0:00:35]} 15. Ne5 {[%emt 0:01:38]} Qd8 {[%emt 0:40:33]} 16. a3 {[%emt 0:42:02]} a5 {[%emt 0:08:04]} 17. Ra2 {[%emt 0:14:59]} Bb7 {[%emt 0:20:38]} 18. Bf4 {[%emt 0:05:53]} Nf5 {[%emt 0:11:40]} 19. b4 {[%emt 0:06:42]} axb4 {[%emt 0:05:24]} 20. axb4 {[%emt 0:00:02]} Ba8 {[%emt 0:00:50]} 21. Ra4 {[%emt 0:07:41]} Nxd4 {[%emt 0:02:10]} 22. Nc4 {[%emt 0:02:51]} Rb7 {[%emt 0:05:33]} 23. Bd6 {[%emt 0:01:00]} Re8 {[%emt 0:00:56]} 24. Bc5 {[%emt 0:02:12]} Nb5 {[%emt 0:00:41]} 25. Ne4 {[%emt 0:00:53]} Rd7 {[%emt 0:00:53]} 26. Qf3 {[%emt 0:02:13]} Bb7 {[%emt 0:00:26]} 27. Bb6 {[%emt 0:01:34]} Qb8 {[%emt 0:00:25]} 28. Nf6+ {[%emt 0:00:56]} Bxf6 {[%emt 0:00:06]} 29. Qxf6 {[%emt 0:00:02]} e5 {[%emt 0:01:45]} 30. Ne3 {[%emt 0:07:39]} Re6 {[%emt 0:00:30]} 31. Ng4 {[%emt 0:00:02]} Qf8 {[%emt 0:00:47]} 32. Bc5 {[%emt 0:00:28]} Qg7 {[%emt 0:00:28]} 33. Rxe5 {[%emt 0:00:54]} Qxf6 {[%emt 0:00:32]} 1-0

[Event "DEN-ch 2019"]
[Site "Svendborg"]
[Date "2019.04.16"]
[Round "4.5"]
[White "Aabling-Thomsen, Jakob"]
[Black "Olsen, Filip Boe"]
[Result "1/2-1/2"]
[ECO "A13"]
[WhiteElo "2358"]
[BlackElo "2414"]
[Annotator "NA"]
[PlyCount "109"]
[EventDate "2019.04.13"]
[EventType "tourn"]
[EventCountry "DEN"]
[SourceTitle "playchess.com"]
[Source "ChessBase"]
[SourceQuality "1"]
[TimeControl "40/5400+30:1800+30"]

1. c4 {[%emt 0:00:00]} e6 {[%emt 0:00:00]} 2. g3 {[%emt 0:00:33]} d5 {[%emt 0:00:00]} 3. Bg2 {[%emt 0:00:35]} Nf6 {[%emt 0:00:22]} 4. Nf3 {[%emt 0:00:45]} dxc4 {[%emt 0:00:15]} 5. Qa4+ {[%emt 0:02:15]} c6 {[%emt 0:00:19]} 6. Qxc4 {[%emt 0:00:45]} b5 {[%emt 0:01:27]} 7. Qc2 {[%emt 0:02:50]} Bb7 {[%emt 0:00:22]} 8. a4 {[%emt 0:05:37]} a6 {[%emt 0:01:47]} 9. O-O {[%emt 0:01:06]} Nbd7 {[%emt 0:00:21]} 10. d3 {[%emt 0:03:30]} Be7 {[%emt 0:04:57]} 11. Nbd2 {[%emt 0:01:14]} c5 {[%emt 0:02:54]} 12. Nb3 {[%emt 0:03:32]} O-O {[%emt 0:04:25]} 13. Bd2 {[%emt 0:00:21]} Rc8 {[%emt 0:07:01]} 14. Rfc1 {[%emt 0:10:47]} c4 {[%emt 0:07:11]} 15. Na5 {[%emt 0:12:01]} cxd3 {[%emt 0:16:19]} 16. Nxb7 {[%emt 0:03:27]} dxc2 {[%emt 0:00:48]} 17. Nxd8 {[%emt 0:00:07]} Rfxd8 {[%emt 0:00:52]} 18. Ba5 {[%emt 0:05:04]} Re8 {[%emt 0:04:01]} 19. axb5 {[%emt 0:02:08]} axb5 {[%emt 0:07:27]} 20. Nd4 {[%emt 0:05:37]} Rc4 {[%emt 0:04:38]} 21. Nxb5 {[%emt 0:08:10]} Rb8 {[%emt 0:02:28]} 22. b3 {[%emt 0:03:15]} Rcc8 {[%emt 0:08:03]} 23. Na7 {[%emt 0:01:16]} Re8 {[%emt 0:02:04]} 24. Nc6 {[%emt 0:16:18]} Rxb3 {[%emt 0:00:49]} 25. Nxe7+ {[%emt 0:00:06]} Rxe7 {[%emt 0:00:12]} 26. Rxc2 {[%emt 0:00:14]} Re8 {[%emt 0:01:37]} 27. Rac1 {[%emt 0:00:02]} h6 {[%emt 0:01:02]} 28. Rc7 {[%emt 0:01:08]} Reb8 {[%emt 0:00:57]} 29. Bc6 {[%emt 0:02:45]} Ne5 {[%emt 0:01:06]} 30. Ba4 {[%emt 0:01:11]} Rb1 {[%emt 0:03:16]} 31. Rxb1 {[%emt 0:00:05]} Rxb1+ {[%emt 0:00:13]} 32. Kg2 {[%emt 0:00:02]} Rb8 {[%emt 0:00:44]} 33. Bc3 {[%emt 0:01:56]} Ng6 {[%emt 0:00:18]} 34. Ra7 {[%emt 0:01:24]} Rc8 {[%emt 0:01:16]} 35. Ba1 {[%emt 0:01:46]} Nd5 {[%emt 0:01:02]} 36. h4 {[%emt 0:01:23]} Nb6 {[%emt 0:02:00]} 37. h5 {[%emt 0:01:26]} Nf8 {[%emt 0:00:38]} 38. Bb5 {[%emt 0:01:12]} Ra8 {[%emt 0:01:02]} 39. Rb7 {[%emt 0:00:53]} Rxa1 {[%emt 0:01:13]} 40. Rxb6 {[%emt 0:00:02]} g6 {[%emt 0:01:45]} 41. hxg6 {[%emt 0:04:15]} Nxg6 {[%emt 0:01:12]} 42. Rb8+ {[%emt 0:04:06]} Kg7 {[%emt 0:00:08]} 43. Be8 {[%emt 0:00:36]} Ra7 {[%emt 0:00:31]} 44. f4 {[%emt 0:00:30]} h5 {[%emt 0:02:28]} 45. Bb5 {[%emt 0:05:21]} h4 {[%emt 0:00:24]} 46. Bd3 {[%emt 0:00:10]} hxg3 {[%emt 0:00:12]} 47. Bxg6 {[%emt 0:01:27]} Kxg6 {[%emt 0:00:57]} 48. Kxg3 {[%emt 0:00:13]} Ra3+ {[%emt 0:00:15]} 49. Kf2 {[%emt 0:00:22]} Kf5 {[%emt 0:00:09]} 50. e3 {[%emt 0:00:33]} f6 {[%emt 0:01:04]} 51. Kf3 {[%emt 0:00:44]} e5 {[%emt 0:00:41]} 52. fxe5 {[%emt 0:00:17]} Kxe5 {[%emt 0:00:12]} 53. Rb5+ {[%emt 0:00:11]} Ke6 {[%emt 0:00:07]} 54. Kf4 {[%emt 0:00:07]} Ra6 {[%emt 0:00:23]} 55. e4 {[%emt 0:00:11] Kd5} 1/2-1/2

[Event "DEN-ch 2019"]
[Site "Svendborg"]
[Date "2019.04.18"]
[Round "6.1"]
[White "Antonsen, Mikkel"]
[Black "Ochsner, Bjorn Moller"]
[Result "1/2-1/2"]
[ECO "E10"]
[WhiteElo "2426"]
[BlackElo "2486"]
[Annotator "ChessBase"]
[PlyCount "88"]
[EventDate "2019.04.13"]
[EventType "tourn"]
[EventCountry "DEN"]
[SourceTitle "playchess.com"]
[Source "ChessBase"]
[SourceQuality "1"]
[TimeControl "40/5400+30:1800+30"]

1. d4 {[%emt 0:00:00]} Nf6 {[%emt 0:00:00]} 2. c4 {[%emt 0:00:00]} e6 {[%emt 0:00:00]} 3. Nf3 {[%emt 0:00:10]} d5 {[%emt 0:00:10]} 4. g3 {[%emt 0:00:04]} Bb4+ {[%emt 0:00:58]} 5. Bd2 {[%emt 0:00:10]} Be7 {[%emt 0:00:10]} 6. Bg2 {[%emt 0:00:08]} O-O {[%emt 0:00:09]} 7. O-O {[%emt 0:00:30]} Nbd7 {[%emt 0:00:07]} 8. Qc2 {[%emt 0:00:25]} Ne4 {[%emt 0:00:09]} 9. Nc3 {[%emt 0:00:27]} Nxd2 {[%emt 0:00:22]} 10. Nxd2 {[%emt 0:01:58]} c6 {[%emt 0:00:07]} 11. Rad1 {[%emt 0:01:01]} f5 {[%emt 0:00:47]} 12. e3 {[%emt 0:00:30]} g5 {[%emt 0:11:02]} 13. Ne2 {[%emt 0:07:15]} b5 {[%emt 0:26:00]} 14. b3 {[%emt 0:05:40]} bxc4 {[%emt 0:02:24]} 15. bxc4 {[%emt 0:00:11]} Ba6 {[%emt 0:01:21]} 16. Rfe1 {[%emt 0:02:15]} Bb4 {[%emt 0:10:13]} 17. cxd5 {[%emt 0:07:32]} cxd5 {[%emt 0:01:26]} 18. Qc6 {[%emt 0:10:43]} Nb6 {[%emt 0:03:31]} 19. Qxe6+ {[%emt 0:01:32]} Kg7 {[%emt 0:03:52]} 20. Nf3 {[%emt 0:02:35]} Rf6 {[%emt 0:10:38]} 21. Nxg5 {[%emt 0:00:13]} h6 {[%emt 0:08:42]} 22. Nf4 {[%emt 0:01:12]} hxg5 {[%emt 0:00:49]} 23. Nh5+ {[%emt 0:00:03]} Kg6 {[%emt 0:00:12]} 24. Nxf6 {[%emt 0:00:04]} Qxf6 {[%emt 0:00:14]} 25. Bxd5 {[%emt 0:00:05]} Nxd5 {[%emt 0:02:24]} 26. Qxd5 {[%emt 0:00:04]} Rd8 {[%emt 0:00:46]} 27. Qb3 {[%emt 0:01:17]} Bxe1 {[%emt 0:00:55]} 28. Rxe1 {[%emt 0:00:04]} Qc6 {[%emt 0:01:50]} 29. Rb1 {[%emt 0:00:53]} Rd7 {[%emt 0:03:14]} 30. f3 {[%emt 0:02:26]} Bb7 {[%emt 0:02:05]} 31. Rf1 {[%emt 0:00:43]} Qd5 {[%emt 0:01:39]} 32. Qxd5 {[%emt 0:07:02]} Bxd5 {[%emt 0:00:10]} 33. a3 {[%emt 0:01:10]} Re7 {[%emt 0:01:33]} 34. Kf2 {[%emt 0:00:19]} Rb7 {[%emt 0:00:45]} 35. Re1 {[%emt 0:00:11]} Rb2+ {[%emt 0:05:26]} 36. Re2 {[%emt 0:00:05]} Rb3 {[%emt 0:01:33]} 37. e4 {[%emt 0:00:25]} fxe4 {[%emt 0:00:13]} 38. fxe4 {[%emt 0:00:05]} Bb7 {[%emt 0:01:06]} 39. Re3 {[%emt 0:13:53]} Rb2+ {[%emt 0:00:09]} 40. Re2 {[%emt 0:00:12]} Rb3 {[%emt 0:00:54]} 41. Re3 {[%emt 0:30:06]} Rb2+ {[%emt 0:30:34]} 42. Re2 {[%emt 0:00:06]} Rb6 {[%emt 0:00:00]} 43. d5 {[%emt 0:00:00]} Kf6 {[%emt 0:00:00]} 44. e5+ {[%emt 0:00:00] Kxe5} Ke7 {[%emt 0:00:00]} 1/2-1/2

[Event "DEN-ch 2019"]
[Site "Svendborg"]
[Date "2019.04.18"]
[Round "6.2"]
[White "Thybo, Jesper Sondergaard"]
[Black "Teplyi, Igor"]
[Result "1-0"]
[ECO "A14"]
[WhiteElo "2513"]
[BlackElo "2418"]
[Annotator "ChessBase"]
[PlyCount "63"]
[EventDate "2019.04.13"]
[EventType "tourn"]
[EventCountry "DEN"]
[SourceTitle "playchess.com"]
[Source "ChessBase"]
[SourceQuality "1"]
[TimeControl "40/5400+30:1800+30"]

1. Nf3 {[%emt 0:00:00]} c5 {[%emt 0:00:00]} 2. c4 {[%emt 0:00:00]} Nf6 {[%emt 0:03:48]} 3. Nc3 {[%emt 0:02:11]} d5 {[%emt 0:01:52]} 4. cxd5 {[%emt 0:00:10]} Nxd5 {[%emt 0:00:05]} 5. g3 {[%emt 0:02:54]} Nc6 {[%emt 0:00:51]} 6. Bg2 {[%emt 0:00:11]} e6 {[%emt 0:03:28]} 7. O-O {[%emt 0:01:49]} Be7 {[%emt 0:00:08]} 8. d4 {[%emt 0:01:23]} Nxc3 {[%emt 0:02:51]} 9. bxc3 {[%emt 0:00:07]} O-O {[%emt 0:00:17]} 10. e4 {[%emt 0:02:11]} b6 {[%emt 0:03:02]} 11. Re1 {[%emt 0:26:16]} Na5 {[%emt 0:02:49]} 12. h4 {[%emt 0:01:21]} Bb7 {[%emt 0:01:43]} 13. Bf4 {[%emt 0:02:49]} cxd4 {[%emt 0:05:25]} 14. cxd4 {[%emt 0:00:07]} Rc8 {[%emt 0:00:07]} 15. Qe2 {[%emt 0:03:18]} Bb4 {[%emt 0:04:39]} 16. Red1 {[%emt 0:00:46]} Bd6 {[%emt 0:03:52]} 17. Bg5 {[%emt 0:10:52]} Qc7 {[%emt 0:02:44]} 18. Rac1 {[%emt 0:02:18]} Qb8 {[%emt 0:00:10]} 19. e5 {[%emt 0:01:56]} Ba3 {[%emt 0:01:10]} 20. Rxc8 {[%emt 0:02:33]} Rxc8 {[%emt 0:00:32]} 21. Bf4 {[%emt 0:01:32]} Qc7 {[%emt 0:35:11]} 22. d5 {[%emt 0:08:01]} Bxd5 {[%emt 0:00:30]} 23. Rxd5 {[%emt 0:00:10]} exd5 {[%emt 0:00:06]} 24. e6 {[%emt 0:00:02]} Qc2 {[%emt 0:01:03]} 25. exf7+ {[%emt 0:00:15]} Kf8 {[%emt 0:00:11]} 26. Qe6 {[%emt 0:02:29]} Qc6 {[%emt 0:02:13]} 27. Bd6+ {[%emt 0:06:38]} Qxd6 {[%emt 0:00:32]} 28. Qxc8+ {[%emt 0:00:07]} Kxf7 {[%emt 0:00:06]} 29. Ng5+ {[%emt 0:02:05]} Ke7 {[%emt 0:00:08]} 30. Nxh7 {[%emt 0:02:38]} d4 {[%emt 0:02:34]} 31. Bh3 {[%emt 0:01:52]} d3 {[%emt 0:00:50]} 32. Qf8# 1-0

[Event "DEN-ch 2019"]
[Site "Svendborg"]
[Date "2019.04.18"]
[Round "6.3"]
[White "Hansen, Sune Berg"]
[Black "Chatalbashev, Boris"]
[Result "1/2-1/2"]
[ECO "B06"]
[WhiteElo "2590"]
[BlackElo "2521"]
[Annotator "ChessBase"]
[PlyCount "80"]
[EventDate "2019.04.13"]
[EventType "tourn"]
[EventCountry "DEN"]
[SourceTitle "playchess.com"]
[Source "ChessBase"]
[SourceQuality "1"]
[TimeControl "40/5400+30:1800+30"]

1. e4 {[%emt 0:02:09]} g6 {[%emt 0:00:00]} 2. d4 {[%emt 0:00:04]} Bg7 {[%emt 0:00:00]} 3. Nf3 {[%emt 0:00:03]} d6 {[%emt 0:00:00]} 4. c3 {[%emt 0:00:04]} Nf6 {[%emt 0:00:00]} 5. Bd3 {[%emt 0:00:03]} O-O {[%emt 0:00:00]} 6. O-O {[%emt 0:00:03]} Nbd7 {[%emt 0:00:00]} 7. Re1 {[%emt 0:01:31]} e5 {[%emt 0:00:02]} 8. Nbd2 {[%emt 0:00:53]} b6 {[%emt 0:00:53]} 9. a4 {[%emt 0:00:33]} a6 {[%emt 0:00:05]} 10. Nf1 {[%emt 0:00:36]} Bb7 {[%emt 0:00:49]} 11. Ng3 {[%emt 0:00:53]} Re8 {[%emt 0:05:26]} 12. Bd2 {[%emt 0:21:06]} d5 {[%emt 0:09:29]} 13. exd5 {[%emt 0:14:28]} exd4 {[%emt 0:02:43]} 14. Rxe8+ {[%emt 0:06:28]} Qxe8 {[%emt 0:01:45]} 15. Nxd4 {[%emt 0:08:58]} Ne5 {[%emt 0:17:20]} 16. Be2 {[%emt 0:01:15]} Bxd5 {[%emt 0:01:41]} 17. Bf4 {[%emt 0:03:55]} h5 {[%emt 0:07:00]} 18. Nf3 {[%emt 0:00:49]} Nxf3+ {[%emt 0:08:57]} 19. Bxf3 {[%emt 0:00:20]} Qc6 {[%emt 0:00:04]} 20. Bxd5 {[%emt 0:00:39]} Nxd5 {[%emt 0:00:14]} 21. Qf3 {[%emt 0:05:59]} Qc4 {[%emt 0:00:37]} 22. Nf1 {[%emt 0:04:53]} Re8 {[%emt 0:15:08]} 23. Ne3 {[%emt 0:05:26]} Qxf4 {[%emt 0:01:04]} 24. Qxd5 {[%emt 0:00:18]} h4 {[%emt 0:02:58]} 25. g3 {[%emt 0:01:48]} Qf6 {[%emt 0:03:04]} 26. Rd1 {[%emt 0:00:59]} h3 {[%emt 0:04:46]} 27. Qd7 {[%emt 0:02:27]} Qe6 {[%emt 0:00:37]} 28. Qxe6 {[%emt 0:00:25]} Rxe6 {[%emt 0:00:07]} 29. Rd8+ {[%emt 0:00:53]} Bf8 {[%emt 0:01:04]} 30. Kf1 {[%emt 0:00:35]} Kg7 {[%emt 0:02:54]} 31. Nd5 {[%emt 0:05:05]} Rd6 {[%emt 0:03:04]} 32. Rxd6 {[%emt 0:00:17]} Bxd6 {[%emt 0:00:02]} 33. Ke2 {[%emt 0:05:35]} g5 {[%emt 0:06:10]} 34. Ne3 {[%emt 0:00:53]} Kg6 {[%emt 0:03:00]} 35. Nc4 {[%emt 0:00:27]} Be7 {[%emt 0:01:58]} 36. b4 {[%emt 0:03:38]} f5 {[%emt 0:01:35]} 37. Ne3 {[%emt 0:00:36]} Bd6 {[%emt 0:00:47]} 38. Nc4 {[%emt 0:00:09]} Be7 {[%emt 0:00:17]} 39. Ne3 {[%emt 0:00:03]} Bd6 {[%emt 0:02:45]} 40. Nc4 {[%emt 0:00:12]} Be7 {[%emt 0:00:48]} 1/2-1/2